Cogmind - Beta 13 @@@ ROGUE MODE // 2024.07.01 @ 16:45:28 Player: Jetpackmatt9 Result: Self-destructed Performance ------------- Evolutions (1) 500 Regions Visited (2) 400 Robots Destroyed (11) 55 Value Destroyed (187) 187 Prototype IDs (0) 0 Alien Tech Used (0) 0 Bonus (0) 0 TOTAL SCORE: 1142 Bonus ------- None Cogmind --------- Core Integrity 351/400 Matter 300/300 Energy 125/125 System Corruption 0% Temperature Cool (0) Movement Walking (190) Ox1 Location -9/Materials Parts ------- > --- POWER (1) -------- Light Ion Engine > --- PROPULSION (4) --- Aluminum Leg > --- UTILITY (2) ------ Small Storage Unit ECM Suite > --- WEAPON (2) ------- Light Assault Rifle Light Assault Rifle > --- INVENTORY (8) ---- Light Treads Heat Sink Heavy Assault Rifle Peak State ------------ > --- POWER ------------ Ion Engine > --- PROPULSION ------- Aluminum Leg Aluminum Leg > --- UTILITY ---------- Small Storage Unit ECM Suite > --- WEAPON ----------- Light Assault Rifle Light Assault Rifle > --- INVENTORY -------- (None) [Rating: 7] Favorites ----------- Power Ion Engine Engine Ion Engine Propulsion Aluminum Leg Leg Aluminum Leg Utility Small Storage Unit Device ECM Suite Storage Small Storage Unit Weapon Light Assault Rifle Ballistic Gun Light Assault Rifle Build | -11 -10 -9 ------- Run | Yrd Mat Mat Slots Evolved 2 | . . 2 Power . | . . . Propulsion 2 | . . 2 Utility . | . . . Weapon . | . . . Parts Attached 8 | 6 . 2 Power 2 | 1 . 1 Engine 2 | 1 . 1 Core . | . . . Reactor . | . . . Propulsion 2 | 2 . . Treads . | . . . Leg 2 | 2 . . Wheel . | . . . Hover . | . . . Flight . | . . . Utility 2 | 1 . 1 Device 1 | . . 1 Storage 1 | 1 . . Processor . | . . . Hackware . | . . . Protection . | . . . Artifact . | . . . Weapon 2 | 2 . . Energy Gun . | . . . Energy Cannon . | . . . Ballistic Gun 2 | 2 . . Ballistic Cannon . | . . . Launcher . | . . . Special Weapon . | . . . Impact Weapon . | . . . Slashing Weapon . | . . . Piercing Weapon . | . . . Special Melee Weapon . | . . . Unidentified Prototypes . | . . . Parts Lost 2 | . . 2 Power 1 | . . 1 Propulsion 1 | . . 1 Utility . | . . . Weapon . | . . . Highest Loss Streak 2 | . . 2 To Critical Strikes . | . . . Average Slot Usage (%) 75 | . 85 67 Engine 11 | . 14 8 Leg 21 | . 28 15 Device 5 | . . 10 Storage 12 | . 14 11 Ballistic Gun 24 | . 28 22 Naked Turns . | . . . Heaviest Build 14 | 12 12 14 Greatest Support 20 | 20 20 20 Greatest Overweight (x) 3 | 3 . 1 Average Overweight (x) . | . . . Largest Inventory Capacity 8 | 8 8 8 Average Capacity 7 | 7 8 8 Most Carried 4 | 3 . 4 Average Carried 1 | . . 2 Final Capacity 8 | 8 8 8 Final Carried 3 | . . 3 Class Distribution -------------------- 100% | Mutant Dominant Class ---------------- Mutant | -10/Materials Mutant | -9/Materials Resources | -11 -10 -9 ----------- Run | Yrd Mat Mat Matter Collected 376 | 255 67 54 Remotely . | . . . Salvage Created 260 | . 119 141 Parts 23 | . 9 14 Haulers Intercepted . | . . . Recyclers Shooed 1 | . 1 . Parts Field Recycled . | . . . Retrieved Matter . | . . . Parts Self-Destructed . | . . . Prevented . | . . . Kills | -11 -10 -9 ------- Run | Yrd Mat Mat Combat Hostiles Destroyed 8 | . 3 5 Guns 8 | . 3 5 Classes Destroyed 5 | . 4 1 Operator 1 | . 1 . Watcher 2 | . 1 1 Swarmer 6 | . 2 4 Grunt 1 | . 1 . Sentry 1 | . . 1 Best Kill Streak 2 | . 1 2 Combat Bots Only 2 | . 1 2 Max Kills in Single Turn 1 | . 1 1 Gunslinging . | . . . Exploded . | . . . Melee . | . . . Uniques/NPCs Destroyed . | . . . Combat | -11 -10 -9 -------- Run | Yrd Mat Mat Hostile Shots Fired 62 | . 33 29 Missed 23 | . 11 12 Damage Taken 361 | . 198 163 Core 72 | . 23 49 Absorbed by Shields . | . . . Core Remaining (%) 95 | 100 90 . Volleys Fired 52 | . 31 21 Largest 2 | . 2 2 Hottest 40 | . 40 40 Shots Fired 104 | . 62 42 Gun 104 | . 62 42 Cannon . | . . . Launcher . | . . . Special . | . . . Kinetic 104 | . 62 42 Thermal . | . . . Explosive . | . . . Electromagnetic . | . . . Robot Hit Streak 12 | . 4 12 Robot Miss Streak 4 | . 4 4 Penetration Max . | . . . Secondary Targets . | . . . Shots Hit Robots 56 | . 30 26 Core Hits 24 | . 13 11 Critical Kills 1 | . . 1 Critical Parts Destroyed 1 | . 1 . Critical Strikes 2 | . 1 1 Destroy 2 | . 1 1 Melee Attacks . | . . . Impact . | . . . Slashing . | . . . Piercing . | . . . Sneak Attacks . | . . . Combat Hostiles . | . . . Follow-up Attacks . | . . . Damage Inflicted 463 | . 270 193 Guns 463 | . 270 193 Cannons . | . . . Explosions . | . . . Melee . | . . . Ramming . | . . . Kinetic 463 | . 270 193 Thermal . | . . . Explosive . | . . . Electromagnetic . | . . . Impact . | . . . Slashing . | . . . Piercing . | . . . Highest Corruption . | . . . Average Corruption . | . . . Corruption Purged . | . . . Corruption Blocked . | . . . Overload Shots . | . . . Overflow Damage . | . . . Projectiles . | . . . Explosions . | . . . Melee . | . . . Knockbacks . | . . . Impact . | . . . Kinetic . | . . . Secondary . | . . . Self-Inflicted Damage . | . . . Shots . | . . . Rammed . | . . . Targets Rammed . | . . . Kicked . | . . . Crushed . | . . . Highest Temperature 9 | . 9 6 Average Temperature 6 | . 6 5 Received Heat Transfer 60 | . 33 27 Siege Activations . | . . . Robots Corrupted . | . . . Combat Hostiles . | . . . Parts Fried . | . . . Impact Corruptions . | . . . Robots Melted . | . . . Combat Hostiles . | . . . Parts Melted . | . . . Heat Transferred . | . . . Parts Sabotaged . | . . . Parts Stolen . | . . . Parts Stripped . | . . . Power Chain Reactions . | . . . Alert | -11 -10 -9 ------- Run | Yrd Mat Mat Peak Influence 186 | . 117 186 Initial 49 | . . 49 Average 79 | . 58 121 Maximum Alert Level . | . . . Low Security (%) 100 | 100 100 100 Level 1 . | . . . Level 2 . | . . . Level 3 . | . . . Level 4 . | . . . Level 5 . | . . . High Security . | . . . Max Security . | . . . Squads Dispatched 1 | . . 1 Investigation . | . . . Extermination . | . . . Reinforcement 1 | . . 1 Assault . | . . . Garrison . | . . . Intercept . | . . . Searches Triggered . | . . . Construction Impeded . | . . . Haulers Reinforced . | . . . Active Scanning Responses . | . . . Cargo Convoy Interrupts . | . . . Stealth | -11 -10 -9 --------- Run | Yrd Mat Mat Distress Signals 3 | . 1 2 Communications Jammed . | . . . Distress Signals . | . . . Times Spotted 25 | . 10 15 Peak Tracking Total 4 | . 4 4 Tactical Retreats 3 | . 1 2 Traps | -11 -10 -9 ------- Run | Yrd Mat Mat Traps Triggered . | . . . Indirectly . | . . . Trap Hack Attempts . | . . . Triggered . | . . . Disarmed . | . . . Reprogrammed . | . . . Reused . | . . . Traps Extracted . | . . . Installed . | . . . Triggered . | . . . Machines | -11 -10 -9 ---------- Run | Yrd Mat Mat Machines Disabled . | . . . Max in Single Turn . | . . . Machines Repaired . | . . . Machines Dismantled . | . . . Machines Sabotaged . | . . . Overloaded Fab Kills . | . . . Hacking | -11 -10 -9 --------- Run | Yrd Mat Mat Machines Accessed 1 | . . 1 Terminals 1 | . . 1 Fabricators . | . . . Repair Stations . | . . . Recycling Units . | . . . Scanalyzers . | . . . Garrison Access . | . . . Total Hacks 1 | . . 1 Successful 1 | . . 1 Failed . | . . . Catastrophic . | . . . Database Lockouts . | . . . Manual . | . . . Terminals 1 | . . 1 Fabricators . | . . . Repair Stations . | . . . Recycling Units . | . . . Scanalyzers . | . . . Garrison Access . | . . . Terminal Hacks 1 | . . 1 Record 1 | . . 1 Fabricator Hacks . | . . . Repair Station Hacks . | . . . Recycling Unit Hacks . | . . . Scanalyzer . | . . . Garrison Access Hacks . | . . . Unauthorized Hacks . | . . . Terminals . | . . . Fabricators . | . . . Repair Stations . | . . . Recycling Units . | . . . Scanalyzers . | . . . Garrison Access . | . . . Data Cores Recovered 1 | . 1 . Used . | . . . Hacking Detections . | . . . Full Trace Events . | . . . Feedback Events . | . . . Feedback Blocked . | . . . Robot Schematics Acquired . | . . . Robots Built . | . . . Authchips . | . . . Time . | . . . Total Robot Build Rating . | . . . Part Schematics Acquired . | . . . Parts Built . | . . . Authchips . | . . . Time . | . . . Total Part Build Rating . | . . . Parts Repaired . | . . . Time . | . . . Parts Recycled . | . . . Recycled Matter . | . . . Retrieved Matter . | . . . Retrieved Components . | . . . Parts Scanalyzed . | . . . Part Schematics Acquired . | . . . Parts Damaged . | . . . Bothacking | -11 -10 -9 ------------ Run | Yrd Mat Mat Used RIF Installer . | . . . Robots Hacked . | . . . Non-combat . | . . . Combat . | . . . Robot Hacks Applied . | . . . Relay Couplers Released . | . . . Fabnet Peak Effective % . | . . . Robots Rewired . | . . . Allies Hacked . | . . . Hacks Repelled . | . . . Allies | -11 -10 -9 -------- Run | Yrd Mat Mat Total Allies . | . . . Largest Group . | . . . Highest-Rated Group . | . . . Highest-Rated Ally . | . . . Total Orders . | . . . Ally Attacks . | . . . Total Damage . | . . . Kills . | . . . Allies Corrupted . | . . . Allies Melted . | . . . Intel | -11 -10 -9 ------- Run | Yrd Mat Mat Robot Analysis Total . | . . . Derelict Logs Recovered . | . . . Drone Launches . | . . . Drone Recoveries . | . . . Exploration | -11 -10 -9 ------------- Run | Yrd Mat Mat Turns Passed 777 | 113 296 368 Spaces Moved 427 | 55 180 192 Core 16 | 16 . . Treads . | . . . Legs 411 | 39 180 192 Wheels . | . . . Hover . | . . . Flight . | . . . Fastest Speed 50 | 50 120 120 Average Speed 128 | 129 120 136 Slowest Speed 200 | 200 120 190 Overloaded Moves . | . . . Propulsion Burnouts . | . . . Robots Hopped . | . . . Cave-ins Triggered . | . . . Exploration Rate (%) 20 | 6 38 16 Regions Visited 2 Branch Regions . Pre-discovered Areas . | . . . Known Exits Taken . | . . . Unknown Exits Taken 2 | 1 1 . Scrap Searched . | . . . Spaces Dug . | . . . Terrain Destroyed . | . . . Melee . | . . . Projectile . | . . . AOE . | . . . Terrain Rammed . | . . . Walls Destroyed . | . . . Machines Disabled . | . . . Actions | -11 -10 -9 --------- Run | Yrd Mat Mat Total 569 | 96 210 263 Wait 73 | 30 . 43 Move 425 | 54 179 192 Hop . | . . . Pick Up 11 | 6 . 5 Fast Attach . | . . . Attach 8 | 6 . 2 Detach . | . . . Swap . | . . . Drop . | . . . Fire 52 | . 31 21 Melee . | . . . Ram . | . . . Kick . | . . . Crush . | . . . Escape Stasis . | . . . Rewire . | . . . Trap . | . . . Miscellaneous . | . . . Route ------- -11/Scrapyard -10/Materials (discovered 2 exits: *Mat / [*Min]) -9/Materials (discovered 1 exit: [*Sto]) History --------- Turn | Location | Event 21 | -11/Scrapyard | Discovered new exit (range 14) 114 | -11/Scrapyard | Entered Materials 211 | -10/Materials | Discovered new exit (range 8) 305 | -10/Materials | Build established: Mutant 386 | -10/Materials | Discovered new exit (range 16) 410 | -10/Materials | Entered another Materials area 410 | -9/Materials | Evolved 2 slots: Propulsion x2 410 | -9/Materials | Discovered new exit (range 14) 778 | -9/Materials | Self-destructed Last Messages --------------- S-10 Pest destroyed. W-16 Scout sends out distress signal. S-10 Pest destroyed. Acquired 6 matter. O-16 Technician: "IFF HANDSHAKE FAILED. SECURING TERMINAL." Acquired Lgt. Ion Engine. ALERT: Hostiles spotted, dispatching reinforcements to Terminal M002. W-16 Scout sends out distress signal. S-10 Pest destroyed. R-06 Scavenger collects Flight Unit. S-10 Pest destroyed. Acquired 20 matter. R-06 Scavenger collects Lgt. Assault Rifle. R-06 Scavenger collects Flight Unit. Connecting with Repair Station... W-16 Scout suffers critical hit (Destroy). W-16 Scout destroyed. R-06 Scavenger collects Lgt. Ion Engine. R-06 Scavenger collects Visual Processing Unit. Acquired 8 matter. Map ----- +----------------------------------------------------+ | ?????????????????????????????????????????????????? | | ?????????????????????????????????????????????????? | | ?????????????????????????????????????????????????? | | ?????????????????????????????????????????????????? | | ?????????????????????????????????????????????????? | | ?????????????????????????????????????????????????? | | ??????????????????????????????????????###########? | | ???????????????????????????????????? # ? | | ????????????????????????????????????? # ?? | | ??????????????????????????????????????/ ?? | | ??????????????????????????????????????# #?? | | ??????????????????????????????????????# #?? | | ??????????????????????????????????????# #?? | | ??????????????????????????????????????# #?? | | ??????????????????????????????????????# ^ ^^^#?? | | ??????????????????????????????????????# ### | | ??????????????????????????????????????# # | | ??????????????????????????????????????# + | | ?????????????????????#????????????????# % # | | ?????????????????????# ???????????????# = # | | ?????????????????????+ ???????????????###+######%# | | ?????????????????????# g????????????????# #[# | | ?????????????????????# g????????????????# """ #=# | | ?????????????????????? ???????????????# "R #%# | | ?????????????????# #####a################ """ #=# | | ?????????????????# ^ @ u + "" # # | | ?????????????????####+################### # # | | ????????????????????????????????????????######## # | | ????????????????????????????????############### | | ?????????????????????????????? | | ?????????????????????????????????????# | | ???????????????##########????????????# | | ???????????????# ############## | | ??????????????## """ T # + | | ??????????????# """ # "" ####### ########### | | ??????????????## """ # T" #####?#+#### # | | ???????????????# # "" # #? # + | | ???????????????# """ # + # # """ # | | ???????????????# """ # # # # """ # | | ???????????????# %""" # # + # """ + | | ???????????????# # # # # #+# | | ???????????????#####+#### # #? ######## | | ?????????????????# ####### ########??????# | | ?????????????????# #?????????# | | ?????????????????# < #?????????# | | ?????????????????# #?????????# | | ?????????????????# ########+#######????????# | | ?????????????????#######?# #????????### | | ?????????????????????????# """" !!! #??????????? | | ?????????????????????????# """" !!! #??????????? | +----------------------------------------------------+ Best States ------------- Heat Dissipation 28 Energy Generation 10 Energy Capacity 250 Matter Stores 300 Matter Capacity 300 Sight Range 16 Terrain Scan Density 10 ECM Strength 1 Evasion (%) 55 Item Schematics ----------------- None Robot Schematics ------------------ None Fabricated ------------ Nothing Alien Tech Used ----------------- None Achievements -------------- None Challenges ------------ None Game ------ Seed AutogunMakeshiftScanner Manual? 0 Play Time 00:07:49 Cumulative 3.9 hours Start 2024.07.01 @ 16:37:45 End 2024.07.01 @ 16:45:28 Sessions 1 Manual Loads 0 Difficulty Rogue Special Mode None Game No. 5 Rogue 5 Adventurer 0 Explorer 0 Win Type - Total 0 Types 0/0/0/0/0/0/0/0/0 Lore% 1 Gallery% 8 Achievement% 6 Wizard Run 0 Options --------- Layout 0 ASCII 0 Keyboard 0 Movement Mouse Keybinds 0 Fullscreen 1 Font 24/Smallcaps Map View 76x50 Zoom Use 0% Tactical HUD 0 Map Filters NONE Filters NONE Steam 1 RUN: be566a65-676b-4b68-9ba6-6d868ac597b7